bitfinex-derivatives/quotes_SOLF0:USTF0_20250703
["timestamp","ask_amount","ask_price","bid_price","bid_amount"]
[1751566973656,0.04667548,150.89,150.88,61.60325591]
[1751566981654,0.04667548,150.89,150.88,66.52642224]
[1751566981855,8.95874923,150.93,150.91,6.6237]
[1751566982157,11.06979808,150.96,150.91,6.6237]
[1751566982353,6.6228,150.94,150.91,6.6237]
[1751566982553,6.11034758,150.93,150.91,6.6237]
[1751566982754,6.6228,150.94,150.91,6.6237]
[1751566982950,6.10980734,150.93,150.91,6.6237]
[1751566983156,6.6228,150.94,150.91,6.6237]
[1751566983461,6.6228,150.94,150.91,14.86175591]
[1751566984156,6.623,150.93,150.91,8.23805591]
[1751566985354,6.6234,150.92,150.91,8.23805591]
[1751566985967,6.6232,150.93,150.91,8.23805591]
[1751566987257,6.6234,150.92,150.91,8.23805591]
[1751566987460,7.76490408,150.94,150.9,0.04868049]
[1751566987662,6.02408571,150.93,150.9,0.04868049]
[1751566987855,6.6238,150.91,150.9,0.04868049]
[1751566991166,6.6238,150.92,150.9,0.04868049]
[1751566991360,4.91709817,150.93,150.9,0.04868049]
[1751566991561,6.02689429,150.92,150.9,0.04868049]
[1751566991867,4.91709817,150.93,150.9,0.04868049]
[1751566992068,6.02724557,150.92,150.9,0.04868049]
[1751566992267,4.91709817,150.93,150.9,0.04868049]
[1751566992766,6.6238,150.91,150.9,0.04868049]
[1751566998970,6.6235,150.92,150.9,0.04868049]
[1751567000076,6.6238,150.91,150.9,0.04868049]
[1751567001173,6.6236,150.92,150.9,0.04868049]
[1751567001372,6.03850991,150.91,150.9,0.04868049]
[1751567001974,6.03850991,150.91,150.9,6.67298049]
[1751567002175,4.91594624,150.96,150.9,8.2867364]
[1751567002472,8.89144325,150.95,150.92,8.23805591]
[1751567002671,15.51424325,150.94,150.92,14.86125591]
[1751567002975,8.89284487,150.93,150.9,0.04868049]
[1751567003175,11.06161173,150.96,150.92,8.23805591]
[1751567003474,8.89649627,150.95,150.92,8.23805591]
[1751567003675,15.51919627,150.94,150.91,6.6234]
[1751567003874,8.89649627,150.93,150.92,8.23805591]
[1751567004172,8.89649627,150.93,150.91,6.6234]
[1751567004371,6.6227,150.94,150.92,14.86145591]
[1751567004566,8.9122397,150.93,150.92,8.23805591]
[1751567004771,15.5352397,150.93,150.9,0.04868049]
[1751567004970,6.623,150.93,150.92,8.23805591]
[1751567005272,6.01627642,150.93,150.92,8.23805591]
[1751567005874,6.01627642,150.93,150.92,13.15086545]
[1751567006074,6.6214,150.97,150.92,13.15086545]
[1751567006270,8.84355933,150.96,150.94,8.23805591]
[1751567006474,8.84355933,150.95,150.94,8.23805591]
[1751567006770,8.84355933,150.95,150.94,14.86035591]
[1751567008180,8.84355933,150.95,150.94,8.23805591]
[1751567009381,8.84355933,150.95,150.94,14.86055591]
[1751567013180,6.14663175,150.98,150.97,6.6212]
[1751567013381,8.83812272,150.98,150.97,14.85925591]
[1751567013685,8.83812272,150.98,150.97,6.6212]
[1751567013877,8.83812272,150.98,150.97,14.85925591]
[1751567015086,5.96657619,150.98,150.97,14.85925591]
[1751567023193,5.96657619,150.98,150.97,8.23805591]
[1751567024991,12.58737619,150.98,150.97,8.23805591]
[1751567025290,5.96657619,150.98,150.93,9.62491737]
[1751567025492,6.6205,150.99,150.96,14.85935591]
[1751567025693,5.87409409,150.98,150.96,14.85935591]
[1751567025893,6.6205,150.99,150.96,14.85935591]
[1751567026089,5.87409409,150.98,150.96,14.85935591]
[1751567026391,6.6208,150.98,150.96,14.85935591]
[1751567026588,2.62715585,151.0,150.96,14.85935591]
[1751567026794,8.50136184,150.99,150.96,14.85935591]
[1751567026991,5.87427671,150.98,150.96,14.85935591]
[1751567027189,6.6205,150.99,150.96,14.85935591]
[1751567027492,5.87380077,150.98,150.96,14.85935591]
[1751567027693,6.6205,150.99,150.97,6.6212]
[1751567027891,6.14663175,151.02,150.98,8.23805591]
[1751567028092,59.69133667,151.05,150.96,4.91280954]
[1751567028093,5.87457536,151.01,150.99,8.23805591]
[1751567028295,6.6193,151.02,150.99,8.23805591]
[1751567028492,5.87271783,151.01,150.99,8.23805591]
[1751567028693,6.6193,151.02,150.99,8.28403783]
[1751567028889,5.86452908,151.01,150.99,8.28403783]
[1751567029091,5.86452908,151.0,150.99,8.28403783]
[1751567030794,5.86452908,151.0,150.99,14.90433783]
[1751567031194,6.6192,151.02,150.99,14.90433783]
[1751567031402,5.82616901,151.01,150.99,14.90433783]
[1751567031593,6.6192,151.02,150.99,14.90433783]
[1751567031794,5.82616901,151.01,150.99,14.90433783]
[1751567031994,6.6188,151.03,151.0,6.6199]
[1751567032293,5.82650792,151.02,151.0,6.6199]
[1751567032493,5.82650792,151.01,151.0,6.6199]
[1751567032899,6.6188,151.03,151.0,6.6199]
[1751567033098,5.82601456,151.02,151.0,6.6199]
[1751567033298,6.6188,151.03,151.0,6.6199]
[1751567033494,5.82529846,151.02,151.0,6.6199]
[1751567033699,6.6188,151.03,151.0,6.6199]
[1751567033901,5.82529846,151.02,151.0,6.6199]
[1751567034099,6.6188,151.03,151.0,6.6199]
[1751567034298,5.82464922,151.02,151.0,6.6199]
[1751567034498,6.6182,151.04,151.0,6.6199]
[1751567034697,8.42937882,151.03,151.0,6.6199]
[1751567034898,5.82464922,151.02,151.0,6.6199]
[1751567035099,2.6047296,151.03,151.0,6.6199]
[1751567035299,5.82464922,151.02,151.0,6.6199]
[1751567035499,2.60468407,151.03,151.0,6.6199]
[1751567035700,5.82912366,151.02,151.0,14.85795591]
[1751567035896,9.22338407,151.03,151.0,8.23805591]
[1751567036097,8.43360428,151.02,151.0,8.23805591]
[1751567036299,8.4351681,151.01,151.0,8.23805591]
[1751567036499,5.82892021,151.01,151.0,8.23805591]
[1751567037394,5.82892021,151.01,150.99,6.66608192]
[1751567037698,6.6187,151.03,151.0,8.23805591]
[1751567037898,8.43801826,151.02,151.0,8.23805591]
[1751567038103,5.83099167,151.01,150.99,6.66608192]
[1751567038302,2.60702659,151.02,151.0,8.23805591]
[1751567038502,5.83185986,151.01,151.0,8.23805591]
[1751567038702,5.83185986,151.01,150.99,6.66608192]
[1751567038904,6.6187,151.03,151.0,8.23805591]
[1751567039100,8.43929168,151.02,151.0,8.23805591]
[1751567039295,5.83185986,151.01,151.0,6.6199]
[1751567039500,5.83185986,151.01,151.0,14.85795591]
[1751567042401,4.91280954,151.05,151.01,6.6191]
[1751567042603,8.44502113,151.04,151.01,14.85715591]
[1751567042797,5.83582366,151.03,151.02,8.23805591]
[1751567043002,5.83582366,151.03,151.02,6.619]
[1751567043203,14.94003175,151.08,151.02,13.15086545]
[1751567043400,2.60945851,151.07,151.05,8.23805591]
[1751567043606,2.60945851,151.06,151.05,8.23805591]
[1751567043806,2.60945851,151.06,151.02,4.91280954]
[1751567043998,6.6166,151.08,151.05,8.23805591]
[1751567044198,2.6094554,151.07,151.05,8.23805591]
[1751567044408,2.6094554,151.06,151.04,6.66649175]
[1751567044608,6.6166,151.08,151.05,8.23805591]
[1751567044808,2.61350636,151.07,151.05,8.23805591]
[1751567045005,2.61350636,151.06,151.04,6.66649175]
[1751567045205,6.6166,151.08,151.05,8.23805591]
[1751567045406,2.61361983,151.07,151.05,8.23805591]
[1751567045700,2.61361983,151.06,151.04,6.66649175]
[1751567045903,6.6166,151.08,151.05,8.23805591]
[1751567046107,2.61361983,151.07,151.05,8.23805591]
[1751567046307,2.61361983,151.06,151.05,6.6177]
[1751567047206,2.61361983,151.06,151.05,14.85575591]
[1751567047405,2.61423098,151.08,151.05,8.23805591]
[1751567047600,6.14663175,151.09,151.07,8.23805591]
[1751567047804,12.76283175,151.09,151.07,8.23805591]
[1751567048006,6.6162,151.09,151.05,6.6174]
[1751567048204,6.14663175,151.1,151.07,8.23805591]
[1751567048417,12.76223175,151.1,151.07,8.23805591]
[1751567048611,12.76223175,151.1,151.06,6.617]
[1751567048812,6.14663175,151.11,151.07,8.23805591]
[1751567049714,6.6156,151.1,151.07,14.85465591]
[1751567050413,6.6156,151.1,151.07,14.89971355]
[1751567050711,6.6153,151.11,151.08,6.6163]
[1751567051807,6.14663175,151.13,151.07,0.04505764]
[1751567051808,6.14663175,151.13,151.09,14.85395591]
[1751567052013,10.6497585,151.13,151.09,14.85395591]
[1751567052311,6.14663175,151.14,151.1,8.23805591]
[1751567052507,17.99901114,151.15,151.1,8.23805591]
[1751567052706,4.52836985,151.14,151.08,51.11280954]
[1751567053010,6.14663175,151.15,151.12,8.23805591]
[1751567053210,6.14663175,151.16,151.12,8.23805591]
[1751567053510,11.14180346,151.16,151.13,8.23805591]
[1751567053709,6.613,151.16,151.13,8.23805591]
[1751567054507,6.613,151.16,151.13,14.85205591]
[1751567054907,12.75923175,151.17,151.13,14.85205591]
[1751567055108,5.82275084,151.16,151.13,14.85205591]
[1751567055307,5.82275084,151.15,151.13,14.85205591]
[1751567055511,5.82275084,151.14,151.13,14.85205591]
[1751567056116,5.82275084,151.14,151.13,8.23805591]
[1751567057120,11.05944129,151.2,151.13,8.23805591]
[1751567057318,5.84256119,151.19,151.14,8.23805591]
[1751567057519,5.84256119,151.18,151.14,8.23805591]
[1751567057720,12.45536119,151.17,151.14,8.23805591]
[1751567058017,5.84256119,151.16,151.15,0.04510412]
[1751567059416,5.84256119,151.16,151.15,8.28316003]
[1751567060421,6.6121,151.18,151.15,8.28316003]
[1751567060619,5.82298993,151.17,151.16,8.23805591]
[1751567061017,5.82298993,151.17,151.15,0.04510412]
[1751567061218,6.6117,151.19,151.16,8.23805591]
[1751567061416,5.83445708,151.18,151.16,8.23805591]
[1751567061618,5.83445708,151.17,151.15,0.04510412]
[1751567061818,6.6117,151.19,151.16,8.23805591]
[1751567062016,5.83210854,151.18,151.16,8.23805591]
[1751567062218,5.83210854,151.17,151.15,6.65820412]
[1751567062520,6.6124,151.17,151.16,8.23805591]
[1751567062717,12.44171444,151.17,151.15,8.28316003]
[1751567062919,11.05944129,151.2,151.15,8.28316003]
[1751567063128,6.6122,151.18,151.15,14.89646003]
[1751567063418,5.82918776,151.17,151.15,14.89646003]
[1751567063617,6.6122,151.18,151.15,14.89646003]
[1751567063818,5.82755638,151.17,151.15,14.89646003]
[1751567064018,6.6122,151.18,151.15,14.89646003]
[1751567064220,5.82755638,151.17,151.15,14.89646003]
[1751567064425,6.6122,151.18,151.15,14.89646003]
[1751567064617,5.82616366,151.17,151.15,14.89646003]
[1751567064817,6.6122,151.18,151.15,8.28316003]
[1751567065022,5.82616366,151.17,151.15,8.28316003]
[1751567065219,6.6118,151.19,151.17,8.23805591]
[1751567065522,5.8251671,151.18,151.17,8.23805591]
[1751567065822,5.8251671,151.18,151.16,6.6127]
[1751567066020,6.6118,151.19,151.17,8.23805591]
[1751567066321,5.83010086,151.18,151.17,8.23805591]
[1751567066518,5.83010086,151.18,151.17,6.6124]
[1751567067019,5.82933123,151.19,151.17,14.85045591]
[1751567067215,2.51746575,151.2,151.17,14.85045591]
[1751567067415,5.82807588,151.19,151.17,14.85045591]
[1751567067620,6.611,151.21,151.17,14.85045591]
[1751567067819,5.82765556,151.2,151.18,14.84995591]
[1751567068023,5.82765556,151.19,151.18,14.84995591]
[1751567068322,5.82765556,151.19,151.18,6.6119]
[1751567069323,5.82765556,151.19,151.17,6.6123]
[1751567069523,6.6112,151.2,151.18,8.23805591]
[1751567069723,5.82611642,151.19,151.18,8.23805591]
[1751567069921,5.82611642,151.19,151.17,6.6123]
[1751567070120,6.6108,151.21,151.18,14.84995591]
[1751567070324,5.79123451,151.2,151.18,14.84995591]
[1751567070519,6.6108,151.21,151.18,14.84995591]
[1751567070719,5.79217438,151.2,151.19,14.84955591]
[1751567072321,5.79217438,151.2,151.19,8.23805591]
[1751567074227,5.79217438,151.2,151.19,14.84965591]
[1751567074428,5.79217438,151.2,151.19,8.23805591]
[1751567074825,5.79217438,151.2,151.19,14.84965591]
[1751567075031,5.79217438,151.2,151.19,8.23805591]
[1751567075428,6.6109,151.21,151.19,8.23805591]
[1751567075628,6.6109,151.21,151.2,8.23805591]
[1751567075929,5.80149355,151.21,151.2,8.23805591]
[1751567076134,5.80149355,151.21,151.19,6.6115]
[1751567076327,6.6105,151.22,151.2,8.23805591]
[1751567076527,5.80137481,151.21,151.2,8.23805591]
[1751567076828,5.80137481,151.21,151.19,6.6115]
[1751567077030,6.6105,151.22,151.2,8.23805591]
[1751567077229,12.41207481,151.21,151.2,8.23805591]
[1751567077429,5.80137481,151.21,151.17,4.95563647]
[1751567077629,11.05944129,151.24,151.2,8.23805591]
[1751567077933,5.80177515,151.23,151.2,8.23805591]
[1751567078229,5.80177515,151.22,151.17,4.95563647]
[1751567078432,5.80177515,151.21,151.2,8.23805591]
[1751567078631,5.80177515,151.21,151.2,8.28333164]
[1751567078831,5.80177515,151.21,151.2,0.04527573]
[1751567079331,6.6105,151.22,151.2,0.04527573]
[1751567079726,5.76435,151.21,151.2,0.04527573]
[1751567080237,12.37505,151.21,151.2,0.04527573]
[1751567080434,17.28785954,151.21,151.2,0.04527573]
[1751567080838,85.65625278,151.21,151.11,6.6148]
[1751567081032,4.91280954,151.16,151.13,8.23805591]
[1751567081232,31.99822357,151.2,151.1,46.04]
[1751567081233,4.91280954,151.14,151.1,46.04]
[1751567081437,4.91280954,151.14,151.11,8.23805591]
[1751567081937,6.6145,151.13,151.11,8.28818399]
[1751567083440,6.6146,151.12,151.11,8.28818399]
[1751567083639,4.91280954,151.14,151.11,8.28818399]
[1751567083828,12.39121102,151.13,151.11,8.28818399]
[1751567084032,5.77636565,151.12,151.11,0.05012808]
[1751567084433,12.39096565,151.12,151.11,0.05012808]
[1751567087239,17.00722932,151.12,151.11,0.05012808]
[1751567087839,12.39096565,151.12,151.11,0.05012808]
[1751567089246,5.77636565,151.12,151.11,0.05012808]
[1751567089639,5.77636565,151.12,151.11,6.66562808]
[1751567090543,5.77636565,151.12,151.11,14.90368399]
[1751567090743,5.77636565,151.12,151.11,8.28818399]
[1751567094756,12.39146565,151.12,151.11,8.28818399]
[1751567094946,12.39146565,151.12,151.11,0.05012808]
[1751567098059,5.77636565,151.12,151.06,46.04]
[1751567098253,10.68917519,151.11,151.07,8.23805591]
[1751567098457,5.77636565,151.1,151.06,8.23805591]
[1751567098663,10.68917519,151.09,151.03,4.91280954]
[1751567098848,5.77636565,151.08,151.05,8.23805591]
[1751567099050,6.6177,151.06,151.05,8.23805591]
[1751567099252,0.04422049,151.08,151.05,8.23805591]
[1751567099452,5.73464257,151.07,151.05,8.23805591]
[1751567099655,6.6175,151.07,151.05,8.23805591]
[1751567100562,5.73358705,151.06,151.01,48.3153]
[1751567100766,4.91280954,151.07,151.04,8.23805591]
[1751567100962,6.6181,151.05,151.04,8.23805591]
[1751567101662,6.6187,151.04,151.01,54.9348]
[1751567101863,6.6187,151.04,151.03,8.23805591]
[1751567102062,4.91280954,151.09,151.03,8.23805591]
[1751567102366,0.04207938,151.05,151.03,8.23805591]
[1751567102569,0.04207938,151.05,151.03,14.85705591]
[1751567102865,6.66027938,151.05,151.03,8.23805591]
[1751567103771,6.6186,151.04,151.03,8.23805591]
[1751567104971,6.66027938,151.05,151.03,8.23805591]
[1751567105369,0.04207938,151.05,151.03,6.6189]
[1751567105572,0.04207938,151.05,151.04,8.23805591]
[1751567106168,6.66017938,151.05,151.04,8.23805591]
[1751567106665,0.04207938,151.05,151.04,8.23805591]
[1751567107671,6.66017938,151.05,151.04,8.23805591]
[1751567109777,0.04207938,151.05,151.04,8.23805591]
[1751567110478,0.04207938,151.05,151.04,14.85665591]
[1751567120882,0.04207938,151.05,151.04,19.76946545]
[1751567122181,5.69423633,151.1,151.07,6.617]
[1751567122382,46.06,151.11,151.07,14.85505591]
[1751567122383,5.69423633,151.09,151.07,14.85505591]
[1751567122584,4.91280954,151.12,151.08,6.6168]
[1751567122784,5.69782832,151.11,151.07,8.23805591]
[1751567122985,5.69782832,151.1,151.07,8.23805591]
[1751567123187,6.6161,151.1,151.07,14.85505591]
[1751567123387,6.6161,151.1,151.07,14.90298002]
[1751567124093,5.70255384,151.09,151.08,6.6168]
[1751567124495,5.70255384,151.09,151.07,0.04792411]
[1751567124791,10.61536338,151.08,151.02,46.02]
[1751567124982,5.70255384,151.07,151.04,8.23805591]
[1751567125188,12.32025384,151.06,151.04,8.23805591]
[1751567125389,5.70255384,151.05,151.04,8.23805591]
[1751567126094,5.70255384,151.05,151.04,14.85655591]
[1751567126289,5.70255384,151.05,151.04,8.23805591]
[1751567126882,12.32065384,151.05,151.04,8.23805591]
[1751567132796,6.6187,151.04,151.02,6.6191]
[1751567133192,6.6187,151.04,151.03,8.23805591]
[1751567133700,6.6183,151.05,151.03,14.85705591]
[1751567133900,0.04251217,151.06,151.04,8.23805591]
[1751567134201,12.33292977,151.05,151.04,8.23805591]
[1751567138402,5.71482977,151.05,151.04,8.23805591]
[1751567139899,5.71482977,151.05,151.04,14.85665591]
[1751567140306,5.71482977,151.05,151.04,8.23805591]
[1751567142704,5.71482977,151.05,151.03,6.6188]
[1751567142903,6.66041217,151.06,151.04,8.23805591]
[1751567143098,6.66041217,151.06,151.05,8.23805591]
[1751567143303,12.391512,151.06,151.05,8.23805591]
[1751567143606,12.391512,151.06,151.02,4.91280954]
[1751567143901,6.66041217,151.06,151.05,8.23805591]
[1751567144101,5.77361759,151.06,151.05,8.23805591]
[1751567144300,5.77361759,151.06,151.05,14.85625591]
[1751567145296,8.17852713,151.11,151.08,8.23805591]
[1751567145503,8.27379498,151.1,151.09,4.90133218]
[1751567145703,8.17852713,151.13,151.11,8.23805591]
[1751567145998,2.11727353,151.12,151.11,8.23805591]
[1751567146201,2.11727353,151.12,151.09,4.90133218]
[1751567146401,4.40926378,151.13,151.11,13.13938809]
[1751567146602,11.16268894,151.14,151.12,8.23805591]
[1751567146801,8.17852713,151.15,151.12,8.23805591]
[1751567146996,13.16496598,151.14,151.11,11.51663218]
[1751567147197,6.6144,151.14,151.12,8.23805591]
[1751567147398,22.05711188,151.16,151.07,4.90133218]
[1751567147603,6.6154,151.12,151.1,8.23805591]
[1751567147995,11.04650322,151.12,151.1,8.23805591]
[1751567148202,6.6156,151.11,151.1,8.23805591]
[1751567148397,6.54546234,151.12,151.08,6.6166]
[1751567148603,4.43110322,151.13,151.09,8.23805591]
[1751567148805,6.54545938,151.12,151.1,8.23805591]
[1751567149002,4.43110322,151.13,151.1,8.23805591]
[1751567149200,2.11435936,151.12,151.1,8.23805591]
[1751567149395,6.54546258,151.13,151.1,8.23805591]
[1751567149595,8.72951481,151.12,151.1,14.85395591]
[1751567149795,6.6154,151.12,151.1,14.85395591]
[1751567149998,8.72951481,151.12,151.1,14.85395591]
[1751567150195,6.6154,151.12,151.1,14.85395591]
[1751567150694,8.72951481,151.12,151.1,14.85395591]
[1751567150898,6.6154,151.12,151.1,14.85395591]
[1751567152006,6.6154,151.12,151.1,8.23805591]
[1751567153000,6.6156,151.11,151.09,6.6162]
[1751567153206,6.6156,151.11,151.1,8.23805591]
[1751567153604,6.6156,151.11,151.07,50.74133218]
[1751567153803,6.6156,151.11,151.1,8.23805591]
[1751567154309,6.6156,151.11,151.09,6.6162]
[1751567154501,6.6156,151.11,151.1,8.23805591]
[1751567155007,6.6156,151.11,151.09,6.6162]
[1751567155206,6.6156,151.11,151.1,8.23805591]
[1751567155402,6.6156,151.11,151.09,6.6162]
[1751567155596,6.6156,151.11,151.1,8.23805591]
[1751567156109,6.6156,151.11,151.09,6.6162]
[1751567156307,6.6156,151.11,151.1,8.23805591]
[1751567156805,6.6156,151.11,151.09,6.6162]
[1751567157002,6.6156,151.11,151.1,8.23805591]
[1751567157403,12.3004362,151.11,151.09,6.6162]
[1751567157608,6.6156,151.11,151.1,8.23805591]
[1751567157804,12.3004362,151.11,151.1,8.23805591]
[1751567158007,12.3004362,151.11,151.09,6.6162]
[1751567158211,6.6156,151.11,151.1,8.23805591]
[1751567158417,5.68434391,151.11,151.1,14.85405591]
[1751567159011,6.6145,151.14,151.12,6.6149]
[1751567159205,5.68404017,151.13,151.12,14.85295591]
[1751567160510,12.29874017,151.13,151.12,8.23805591]
[1751567162012,6.6155,151.12,151.1,6.6159]
[1751567162215,5.68404017,151.11,151.1,14.85395591]
[1751567164111,6.6149,151.13,151.1,14.85395591]
[1751567164318,5.68612855,151.12,151.11,8.23805591]
[1751567165721,12.30122855,151.12,151.11,8.23805591]
[1751567166017,5.68612855,151.12,151.09,6.6163]
[1751567166220,4.90133218,151.14,151.09,8.23805591]
[1751567166518,7.99758957,151.13,151.09,14.85445591]
[1751567166715,5.69159412,151.12,151.09,8.23805591]
[1751567166918,6.616,151.1,151.09,8.23805591]
[1751567167918,2.3058627,151.13,151.09,8.23805591]
[1751567167919,6.6158,151.11,151.09,8.23805591]
[1751567168119,2.30586984,151.13,151.09,8.23805591]
[1751567168418,6.6156,151.11,151.09,8.23805591]
[1751567169919,6.6156,151.11,151.09,14.85445591]
[1751567170918,6.616,151.1,151.09,8.23805591]
[1751567171114,2.30585491,151.13,151.09,8.23805591]
[1751567171319,5.68639652,151.12,151.11,11.51693218]
[1751567171518,12.01653218,151.19,151.11,11.51693218]
[1751567171519,8.17852713,151.18,151.11,4.90133218]
[1751567171822,7.99146953,151.17,151.15,8.23805591]
[1751567172021,5.68668299,151.16,151.15,8.23805591]
[1751567172624,5.68668299,151.16,151.15,11.51513218]
[1751567172922,5.68668299,151.16,151.15,19.75318809]
[1751567176723,5.68668299,151.16,151.15,14.85185591]
[1751567177927,45.78,151.21,151.15,8.23805591]
[1751567178128,6.6122,151.19,151.17,8.23805591]
[1751567178425,5.68619633,151.18,151.17,8.23805591]
[1751567178625,5.68619633,151.18,151.16,6.6131]
[1751567178826,6.6122,151.19,151.17,8.23805591]
[1751567179128,5.67946122,151.18,151.17,14.85095591]
[1751567179322,5.67946122,151.18,151.17,6.6129]
[1751567182926,5.67946122,151.18,151.16,11.51473218]
[1751567183127,6.6125,151.19,151.17,8.23805591]
[1751567183326,5.67842001,151.18,151.17,8.23805591]
[1751567183528,5.67842001,151.18,151.14,4.90133218]
[1751567183726,6.6125,151.19,151.17,8.23805591]
[1751567184024,5.67842001,151.18,151.17,8.23805591]
[1751567184225,5.67842001,151.18,151.14,4.90133218]
[1751567184425,6.6125,151.19,151.17,8.23805591]
[1751567184625,5.67865206,151.18,151.17,8.23805591]
[1751567184927,5.67865206,151.18,151.14,4.90133218]
[1751567185127,6.6125,151.19,151.17,8.23805591]
[1751567185327,5.6791595,151.18,151.17,8.23805591]
[1751567185527,5.6791595,151.18,151.14,4.90133218]
[1751567185727,6.6125,151.19,151.17,8.23805591]
[1751567185926,12.2916595,151.18,151.16,6.6132]
[1751567186128,6.6125,151.18,151.16,6.6132]
[1751567186621,6.6125,151.18,151.15,6.6136]
[1751567186827,5.71125073,151.17,151.15,14.85165591]
[1751567187029,4.90133218,151.19,151.13,4.90133218]
[1751567187220,8.03265669,151.18,151.13,8.23805591]
[1751567187418,12.93398887,151.17,151.12,45.78]
[1751567187626,14.64645669,151.16,151.12,54.01805591]
[1751567187830,5.71231401,151.15,151.13,6.6147]
[1751567188130,5.71231401,151.14,151.13,6.6147]
[1751567191024,8.17852713,151.19,151.13,13.13938809]
[1751567191231,2.31794166,151.2,151.16,8.23805591]
[1751567191432,2.31794166,151.21,151.16,8.23805591]
[1751567191729,8.92994166,151.2,151.16,8.23805591]
[1751567191930,6.612,151.2,151.17,6.6127]
[1751567192127,8.92994166,151.2,151.17,6.6127]
[1751567192327,6.6122,151.19,151.17,6.6127]
[1751567194140,6.6119,151.2,151.15,4.90133218]
[1751567194428,8.92984166,151.2,151.16,8.23805591]
[1751567194628,2.31794166,151.21,151.16,8.23805591]
[1751567194831,2.31794166,151.2,151.16,8.23805591]
[1751567195030,2.31794166,151.21,151.16,8.23805591]
[1751567195230,6.51794267,151.22,151.16,8.23805591]
[1751567195231,2.31794166,151.2,151.16,8.23805591]
[1751567195428,2.32412778,151.21,151.16,8.23805591]
[1751567195630,2.32412778,151.2,151.16,8.23805591]
[1751567195830,2.32412778,151.21,151.16,8.23805591]
[1751567196031,2.32412778,151.2,151.16,8.23805591]
[1751567196228,6.6119,151.2,151.17,6.6126]
[1751567196527,8.93602778,151.2,151.17,8.23805591]
[1751567196834,6.6119,151.2,151.17,6.6127]
[1751567197132,8.93602778,151.2,151.17,6.6127]
[1751567197332,6.6119,151.2,151.17,6.6127]
[1751567197530,8.93602778,151.2,151.17,6.6127]
[1751567197722,6.6119,151.2,151.17,6.6127]
[1751567198026,8.93602778,151.2,151.17,6.6127]
[1751567198334,6.6119,151.2,151.17,6.6127]
[1751567198535,8.93602778,151.2,151.17,6.6127]
[1751567198833,6.6119,151.2,151.17,6.6127]
[1751567199035,8.93602778,151.2,151.17,6.6127]
[1751567199234,6.6119,151.2,151.17,6.6127]
[1751567199536,6.6121,151.19,151.17,6.6127]
[1751567202438,6.6118,151.2,151.18,14.85055591]
[1751567202644,2.32321678,151.2,151.18,6.6125]
[1751567202837,8.93471678,151.21,151.19,8.23805591]
[1751567203138,5.69522388,151.2,151.19,8.23805591]
[1751567203839,12.30682388,151.2,151.19,8.23805591]
[1751567204742,8.17852713,151.24,151.19,13.13938809]
[1751567204937,2.32405086,151.23,151.15,4.90133218]
[1751567205137,2.32405086,151.23,151.18,8.23805591]
[1751567205138,7.22538304,151.22,151.18,8.23805591]
[1751567205439,6.6121,151.19,151.18,8.23805591]
[1751567205639,6.6121,151.19,151.17,6.6127]
[1751567205840,6.6121,151.19,151.18,8.23805591]
[1751567206342,6.6121,151.19,151.17,6.6127]
[1751567206543,6.6121,151.19,151.18,8.23805591]
[1751567206943,6.6121,151.19,151.17,6.6127]
[1751567207143,6.6121,151.19,151.18,8.23805591]
[1751567207641,6.6125,151.18,151.16,6.6132]
[1751567207841,6.6125,151.18,151.16,14.85125591]
[1751567208042,6.6125,151.18,151.17,0.04236338]
[1751567209150,6.6123,151.19,151.17,6.65536338]
[1751567211049,8.93596173,151.2,151.18,6.6125]
[1751567211348,2.32445476,151.19,151.17,8.28041929]
[1751567211548,6.612,151.2,151.17,8.28041929]
[1751567211750,2.32445505,151.19,151.17,14.89311929]
[1751567212050,6.6121,151.19,151.17,14.89311929]
[1751567213454,6.6121,151.19,151.18,8.23805591]
[1751567213752,8.93336916,151.19,151.18,8.23805591]
[1751567213945,8.93336916,151.19,151.17,6.65506338]
[1751567214150,6.6121,151.19,151.18,8.23805591]
[1751567214352,2.32225167,151.19,151.18,8.23805591]
[1751567214551,2.32225167,151.19,151.17,6.65506338]
[1751567214753,6.65546748,151.2,151.18,8.23805591]
[1751567214953,2.32229472,151.19,151.18,8.23805591]
[1751567215156,2.32229472,151.19,151.17,6.65506338]
[1751567215454,6.6121,151.19,151.18,8.23805591]
[1751567215754,8.93546987,151.19,151.18,8.23805591]
[1751567215946,8.93546987,151.19,151.17,6.65506338]
[1751567216143,6.6121,151.19,151.18,8.23805591]
[1751567216347,2.32336986,151.19,151.18,8.23805591]
[1751567216549,2.32336986,151.19,151.17,6.65506338]
[1751567216750,0.04356748,151.2,151.18,8.23805591]
[1751567216947,7.98711472,151.19,151.18,8.23805591]
[1751567217148,7.98711472,151.19,151.17,6.65506338]
[1751567217344,6.18660177,151.2,151.18,8.23805591]
[1751567217557,14.60107796,151.19,151.18,8.23805591]